Cogmind - Beta 16 @@@ ROGUE MODE // 2026.01.08 @ 02:05:22 Player: Qvest Result: Self-destructed Performance ------------- Evolutions (1) 500 Regions Visited (3) 600 Robots Destroyed (22) 110 Value Destroyed (542) 542 Prototype IDs (2) 40 Alien Tech Used (0) 0 Bonus (0) 0 TOTAL SCORE: 1792 Bonus ------- None Cogmind --------- Core Integrity 272/400 Matter 239/300 Energy 99/100 System Corruption 0% Temperature Cool (0) Movement Core (50) Location -9/Mines Parts ------- > --- POWER (1) -------- (None) > --- PROPULSION (4) --- (None) > --- UTILITY (2) ------ (None) > --- WEAPON (2) ------- (None) > --- INVENTORY (5) ---- Deuterium Engine Aluminum Leg Structural Scanner Sensor Array Improved Terrain Scanner Peak State ------------ > --- POWER ------------ Deuterium Engine > --- PROPULSION ------- Light Treads Aluminum Leg Aluminum Leg Armored Wheel > --- UTILITY ---------- Medium Storage Unit Seismic Detector > --- WEAPON ----------- Advanced Beam Cannon Light Cannon > --- INVENTORY -------- Deuterium Engine Armored Wheel Armored Wheel Structural Scanner Sensor Array Improved Terrain Scanner Reaction Control System Spread Laser Light Cannon Heavy Hammer [Rating: 16] Favorites ----------- Power Light Ion Engine Engine Light Ion Engine Propulsion Aluminum Leg Treads Light Treads Leg Aluminum Leg Wheel Armored Wheel Utility Seismic Detector Device Seismic Detector Storage Medium Storage Unit Weapon Assault Rifle Energy Gun Particle Gun Energy Cannon Advanced Beam Cannon Ballistic Gun Assault Rifle Ballistic Cannon Light Cannon Build | -11 -10 -9 -9 ------- Run | Yrd Mat Mat Min Slots Evolved 2 | . . 2 . Power . | . . . . Propulsion 2 | . . 2 . Utility . | . . . . Weapon . | . . . . Parts Attached 32 | 7 11 14 . Power 7 | 1 3 3 . Engine 7 | 1 3 3 . Core . | . . . . Reactor . | . . . . Propulsion 10 | 2 3 5 . Treads 1 | . . 1 . Leg 6 | 2 3 1 . Wheel 3 | . . 3 . Hover . | . . . . Flight . | . . . . Utility 5 | 2 3 . . Device 2 | 1 1 . . Storage 3 | 1 2 . . Processor . | . . . . Hackware . | . . . . Protection . | . . . . Artifact . | . . . . Weapon 10 | 2 2 6 . Energy Gun 5 | 1 1 3 . Energy Cannon 1 | . . 1 . Ballistic Gun 2 | 1 1 . . Ballistic Cannon 2 | . . 2 . Launcher . | . . . . Special Weapon . | . . . . Impact Weapon . | . . . . Slashing Weapon . | . . . . Piercing Weapon . | . . . . Special Melee Weapon . | . . . . Unidentified Prototypes 2 | . . 2 . Parts Lost 4 | . . . 4 Power 1 | . . . 1 Propulsion 2 | . . . 2 Utility . | . . . . Weapon 1 | . . . 1 Highest Loss Streak 4 | . . . 4 To Critical Strikes . | . . . . Average Backups 8 | 4 8 9 10 Power 1 | . 1 1 1 Propulsion 3 | 2 4 3 2 Utility 2 | . 1 3 4 Weapon 1 | . 1 2 3 Tool/Special . | . . . . Unused Backups 15 | . 6 5 4 Power 3 | . 1 2 . Propulsion 4 | . 3 1 . Utility 3 | . . . 3 Weapon 5 | . 2 2 1 Tool/Special . | . . . . Average Slot Usage (%) 99 | . 100 99 93 Engine 12 | . 14 11 10 Treads 3 | . . 5 10 Leg 27 | . 28 28 18 Wheel 5 | . . 9 12 Device 12 | . 14 11 10 Storage 12 | . 14 11 10 Energy Gun 10 | . 14 8 . Energy Cannon 2 | . . 2 10 Ballistic Gun 10 | . 14 8 . Ballistic Cannon 2 | . . 2 9 Peak Build Rating 16 | 8 9 16 16 Average Rating 10 | 5 8 12 15 On Entrance 8 | . 8 9 16 Avg Prop Armor Cover (%) 18 | . . 18 19 Naked Turns 7 | . . . 7 Heaviest Build 29 | 12 29 27 27 Greatest Support 40 | 20 20 40 24 Greatest Overweight (x) 2 | . 1 2 2 Average Overweight (x) . | . . . 1 Largest Inventory Capacity 15 | 8 15 10 10 Average Capacity 9 | 6 8 10 9 Most Carried 10 | 8 10 10 10 Average Carried 8 | 4 8 9 9 Final Capacity 10 | 8 10 10 5 Final Carried 10 | 8 10 10 5 Class Distribution -------------------- 81% | Mutant 18% | Scavenger-Mutant Dominant Class ---------------- Mutant | -10/Materials Mutant | -9/Materials Mutant | -9/Mines Resources | -11 -10 -9 -9 ----------- Run | Yrd Mat Mat Min Matter Collected 683 | 276 164 243 . Remotely . | . . . . Salvage Created 784 | 18 481 232 53 Parts 46 | 4 22 19 1 Haulers Intercepted 4 | . 2 2 . Recyclers Shooed 1 | 1 . . . Parts Field Recycled . | . . . . Retrieved Matter . | . . . . Parts Self-Destructed . | . . . . Prevented . | . . . . Parts Restored . | . . . . Kills | -11 -10 -9 -9 ------- Run | Yrd Mat Mat Min Combat Hostiles Destroyed 13 | . 8 4 1 Guns 11 | . 7 4 . Cannons 1 | . . . 1 AOE 1 | . 1 . . Classes Destroyed 7 | 1 3 2 1 Tunneler 1 | 1 . . . Hauler 4 | . 2 2 . Watcher 4 | . 1 3 . Swarmer 3 | . . 3 . Grunt 8 | . 8 . . Duelist 1 | . . . 1 Sentry 1 | . . 1 . Best Kill Streak 3 | 1 2 3 1 Combat Bots Only 3 | . 2 3 1 Max Kills in Single Turn 1 | 1 1 1 1 Gunslinging . | . . . . Exploded 1 | . 1 . . Melee . | . . . . Uniques/NPCs Destroyed . | . . . . Combat | -11 -10 -9 -9 -------- Run | Yrd Mat Mat Min Hostile Shots Fired 96 | . 30 45 21 Missed 29 | . 12 12 5 Hits 67 | . 18 33 16 Projectile 67 | . 18 33 16 AOE 14 | . . . 14 Critical Strikes 1 | . . 1 . Damage Taken 1138 | . 229 288 621 Core 180 | . 52 56 72 Absorbed by Shields . | . . . . Core Remaining (%) 89 | 100 79 . . Volleys Fired 79 | 6 36 34 3 Largest 2 | 1 2 2 2 Hottest 98 | 20 85 85 98 Shots Fired 150 | 6 72 66 6 Gun 144 | 6 72 66 . Cannon 6 | . . . 6 Launcher . | . . . . Special . | . . . . Kinetic 79 | 6 36 34 3 Thermal 45 | . 10 32 3 Explosive . | . . . . Electromagnetic 26 | . 26 . . Robot Hit Streak 10 | 2 10 7 3 Robot Miss Streak 7 | 3 3 7 1 Penetration Max . | . . . . Secondary Targets 3 | . 2 1 . Max Gunslinging Chain 1 | . 1 1 . Shots Hit Robots 85 | 2 42 37 4 Core Hits 52 | 2 23 25 2 Critical Kills 1 | . . 1 . Critical Parts Destroyed . | . . . . Critical Strikes 1 | . . 1 . Destroy 1 | . . 1 . Melee Attacks . | . . . . Impact . | . . . . Slashing . | . . . . Piercing . | . . . . Sneak Attacks . | . . . . Combat Hostiles . | . . . . Follow-up Attacks . | . . . . Damage Inflicted 1179 | 17 495 591 76 Guns 1000 | 17 475 508 . Cannons 76 | . . . 76 Explosions 103 | . 20 83 . Melee . | . . . . Ramming . | . . . . Kinetic 484 | 17 205 247 15 Thermal 422 | . 100 261 61 Explosive 83 | . . 83 . Electromagnetic 190 | . 190 . . Impact . | . . . . Slashing . | . . . . Piercing . | . . . . Highest Corruption . | . . . . Average Corruption . | . . . . Corruption Purged . | . . . . Corruption Blocked . | . . . . Overload Shots . | . . . . Overflow Damage . | . . . . Projectiles . | . . . . Explosions . | . . . . Melee . | . . . . Knockbacks . | . . . . Impact . | . . . . Kinetic . | . . . . Secondary . | . . . . Self-Inflicted Damage . | . . . . Shots . | . . . . Rammed . | . . . . Targets Rammed . | . . . . Kicked . | . . . . Crushed . | . . . . Highest Temperature 186 | . 186 90 90 Average Temperature 37 | . 44 28 45 Received Heat Transfer 177 | . 126 27 24 Siege Activations . | . . . . Martial Activations . | . . . . Shielding Activations . | . . . . Robots Disrupted . | . . . . Combat Hostiles . | . . . . Robots Corrupted . | . . . . Combat Hostiles . | . . . . Parts Fried . | . . . . Impact Corruptions . | . . . . Robots Melted . | . . . . Combat Hostiles . | . . . . Parts Melted . | . . . . Heat Transferred 773 | . 235 427 111 Parts Sabotaged . | . . . . Parts Stolen . | . . . . Parts Stripped . | . . . . Power Chain Reactions 1 | . 1 . . Alert | -11 -10 -9 -9 ------- Run | Yrd Mat Mat Min Maximum Alert Level . | . . . . Low Security (%) 100 | 100 100 100 100 Level 1 . | . . . . Level 2 . | . . . . Level 3 . | . . . . Level 4 . | . . . . Level 5 . | . . . . High Security . | . . . . Max Security . | . . . . Peak Influence 164 | 5 77 164 30 Initial 28 | . . . 28 Average 35 | . 26 61 7 Influence Increases 565 | 5 273 257 30 Destroy 0b10 Robot/C 260 | . 160 80 20 Destroy 0b10 Robot/NC 45 | 5 15 25 . Destroy Leader 76 | . 36 30 10 Successful Hack 12 | . . 12 . Disable Machine 45 | . 15 30 . Destroy Structure 7 | . 2 5 . Partial Spotted 30 | . 15 15 . Lose Combat Pursuer 90 | . 30 60 . Influence Decreases 565 | 5 273 183 104 Entered New Map 46 | . . . 46 Time Decay 479 | 5 263 183 28 Lost Part 30 | . . . 30 Lost Ally 10 | . 10 . . Squads Dispatched 1 | . . 1 . Investigation 1 | . . 1 . Extermination . | . . . . Reinforcement . | . . . . Assault . | . . . . Garrison . | . . . . Intercept . | . . . . Searches Triggered . | . . . . Construction Impeded . | . . . . Haulers Reinforced . | . . . . Active Scanning Responses . | . . . . Cargo Convoy Interrupts . | . . . . Stealth | -11 -10 -9 -9 --------- Run | Yrd Mat Mat Min Distress Signals 2 | . 2 . . Communications Jammed . | . . . . Distress Signals . | . . . . Times Spotted 39 | . 19 15 5 Peak Tracking Total 4 | . 4 4 4 Tactical Retreats 2 | . 1 1 . Traps | -11 -10 -9 -9 ------- Run | Yrd Mat Mat Min Traps Triggered 1 | . . 1 . Indirectly . | . . . . Trap Hack Attempts . | . . . . Triggered . | . . . . Disarmed . | . . . . Reprogrammed . | . . . . Reused . | . . . . Traps Extracted . | . . . . Installed . | . . . . Triggered . | . . . . Machines | -11 -10 -9 -9 ---------- Run | Yrd Mat Mat Min Machines Disabled 3 | . 1 2 . Max in Single Turn 2 | . 1 2 . Machines Repaired . | . . . . Machines Dismantled . | . . . . Machines Sabotaged . | . . . . Overloaded Fab Kills . | . . . . Hacking | -11 -10 -9 -9 --------- Run | Yrd Mat Mat Min Machines Accessed 5 | . 2 3 . Terminals 5 | . 2 3 . Fabricators . | . . . . Repair Stations . | . . . . Recycling Units . | . . . . Scanalyzers . | . . . . Garrison Access . | . . . . Total Hacks 6 | . 3 3 . Successful 3 | . 1 2 . Failed 3 | . 2 1 . Catastrophic 1 | . . 1 . Database Lockouts . | . . . . Manual 6 | . 3 3 . Terminals 6 | . 3 3 . Fabricators . | . . . . Repair Stations . | . . . . Recycling Units . | . . . . Scanalyzers . | . . . . Garrison Access . | . . . . Terminal Hacks . | . . . . Fabricator Hacks . | . . . . Repair Station Hacks . | . . . . Recycling Unit Hacks . | . . . . Scanalyzer . | . . . . Garrison Access Hacks . | . . . . Unauthorized Hacks 3 | . 1 2 . Terminals 3 | . 1 2 . Assimilate 3 | . 1 2 . Fabricators . | . . . . Repair Stations . | . . . . Recycling Units . | . . . . Scanalyzers . | . . . . Garrison Access . | . . . . Data Cores Recovered . | . . . . Used . | . . . . Hacking Detections 2 | . 1 1 . Full Trace Events . | . . . . Feedback Events . | . . . . Feedback Blocked . | . . . . Robot Schematics Acquired . | . . . . Robots Built . | . . . . Authchips . | . . . . Time . | . . . . Total Robot Build Rating . | . . . . Part Schematics Acquired . | . . . . Parts Built . | . . . . Authchips . | . . . . Time . | . . . . Total Part Build Rating . | . . . . Part Studies Acquired . | . . . . Parts Repaired . | . . . . Time . | . . . . Parts Recycled . | . . . . Recycled Matter . | . . . . Retrieved Matter . | . . . . Retrieved Components . | . . . . Parts Scanalyzed . | . . . . Part Schematics Acquired . | . . . . Parts Damaged . | . . . . Bothacking | -11 -10 -9 -9 ------------ Run | Yrd Mat Mat Min Used RIF Installer . | . . . . Robots Hacked . | . . . . Non-combat . | . . . . Combat . | . . . . Robot Hacks Applied . | . . . . Relay Couplers Released . | . . . . Fabnet Peak Effective % . | . . . . Robots Rewired . | . . . . Allies Hacked . | . . . . Hacks Repelled . | . . . . Allies | -11 -10 -9 -9 -------- Run | Yrd Mat Mat Min Total Allies 1 | . 1 . . Largest Group 1 | . 1 . . Highest-Rated Group 10 | . 10 . . Highest-Rated Ally 10 | . 10 . . Total Orders . | . . . . Ally Attacks . | . . . . Total Damage . | . . . . Kills . | . . . . Allies Corrupted . | . . . . Allies Melted . | . . . . Intel | -11 -10 -9 -9 ------- Run | Yrd Mat Mat Min Active Infowar (turns) 1462 | 22 712 570 158 Seismic 1462 | 22 712 570 158 Robot Analysis Total . | . . . . Derelict Logs Recovered . | . . . . Drone Launches . | . . . . Drone Recoveries . | . . . . Exploration | -11 -10 -9 -9 ------------- Run | Yrd Mat Mat Min Turns Passed 1559 | 112 712 570 165 Spaces Moved 1018 | 65 450 368 135 Core 16 | 2 . . 14 Treads . | . . . . Legs 620 | 63 450 107 . Wheels 382 | . . 261 121 Hover . | . . . . Flight . | . . . . Fastest Speed 50 | 50 120 90 50 Average Speed 114 | 117 120 108 109 Slowest Speed 190 | 120 190 190 120 Overloaded Moves . | . . . . Propulsion Burnouts . | . . . . Robots Hopped . | . . . . Potential Cave-ins . | . . . . Cave-ins Triggered . | . . . . Exploration Rate (%) 28 | 5 33 29 46 Regions Visited 3 Branch Regions 1 Pre-discovered Areas . | . . . . Known Exits Taken . | . . . . Unknown Exits Taken 3 | 1 1 1 . Scrap Searched . | . . . . Spaces Dug . | . . . . Terrain Destroyed 6 | . 2 4 . Melee . | . . . . Projectile . | . . . . AOE 6 | . 2 4 . Terrain Rammed . | . . . . Walls Destroyed . | . . . . Machines Disabled . | . . . . Actions | -11 -10 -9 -9 --------- Run | Yrd Mat Mat Min Total 1278 | 92 565 476 145 Wait 80 | 6 38 31 5 Move 1015 | 64 449 367 135 Hop . | . . . . Pick Up 32 | 9 13 10 . Fast Attach 7 | 6 1 . . Attach 4 | 1 . 2 1 Detach . | . . . . Swap 28 | . 10 17 1 Drop 33 | . 18 15 . Fire 79 | 6 36 34 3 Melee . | . . . . Ram . | . . . . Kick . | . . . . Crush . | . . . . Escape Stasis . | . . . . Rewire . | . . . . Trap . | . . . . Miscellaneous . | . . . . Route ------- -11/Scrapyard -10/Materials -9/Materials -9/Mines History --------- Turn | Location | Event 6 | -11/Scrapyard | Discovered new exit (range 15) 113 | -11/Scrapyard | Entered Materials 317 | -10/Materials | Build established: Mutant 651 | -10/Materials | Discovered new exit (range 16) 825 | -10/Materials | Entered another Materials area 825 | -9/Materials | Evolved 2 slots: Propulsion x2 1372 | -9/Materials | Discovered new exit (range 16) 1395 | -9/Materials | Entered Mines 1500 | -9/Mines | Assembled infested the area 1553 | -9/Mines | Released all parts (6) 1560 | -9/Mines | Self-destructed Last Messages --------------- 01539_ The unstable cave ceiling collapses. 01544_ L-31 Rogue destroyed. 01544_ U-05 Engineer lays Concrete. 01546_ Lgt. Cannon destroyed. 01547_ The unstable cave ceiling collapses. 01548_ U-05 Engineer lays Concrete. 01550_ Arm. Wheel destroyed. 01550_ Lgt. Treads destroyed. 01550_ U-05 Engineer lays Concrete. 01551_ The unstable cave ceiling collapses. 01552_ Deuterium Engine destroyed. 01553_ The unstable cave ceiling collapses. 01553_ U-05 Engineer lays Concrete. 01553_ Released Arm. Wheel. 01553_ Released Adv. Beam Cannon. 01553_ Released Seismic Detector. 01553_ Released Med. Storage Unit. 01553_ Released Aluminum Leg. 01553_ Released Arm. Wheel. 01554_ The unstable cave ceiling collapses. Map ----- +----------------------------------------------------+ | ??????????? ????#" ##??????????????? | | ??????????? ?????# ###???????????????? | | ?????????????????# ##????????????????? | | ???????????????### ###???????????????? | | ???????????????# ##########??????? | | ??????????????## ?????? | | ?????????????## # """ """ ????? | | ????????????## # """ """ #???? | | ????????????# # """ """ #???? | | ?# ### ###### #???? | | ### """ """ #???? | | ?######### ### * """ """ #???? | | ?????????# g """ """ #???? | | ?????????###### ### #???? | | ??????????????###### #???? | | ??????????????????## # # #######???? | | ??????????????????# d ##?????????? | | ??????????????##??# d #?????????? | | ?????????????## ### =]! #?????????? | | ?????????# ### # !=!] #?????????? | | ?????????# =[/ ##?????????? | | ???????????#### ##????????? | | ??????????????# ###??????? | | ??????????????## ######?? | | ???????????????#### #?? | | ??????????????????## @ #?? | | ??????????????????## ## #?? | | ??????????????????# #?# #??? | | ?????????????????# ######??####??? | | ?????????????????# #?????????????? | | ?????????????????# #????????????? | | ?????????????????# #???????????? | | ?????????????????## #???????????? | | ??????????????????## #???????????? | | ???????????????????###### #???????????? | | ????????????????????????? #???????????? | | ????????????????????????? #???????????? | | ?????????????????????????? ???????????? | | ?????????????????????????? ???????????? | | ??????????????????????????##??????????? | | ??????????????????????????????????????? | | ??????????????????????????????????????? | | ??????????????????????????????????????? | | ??????????????????????????????????????? | | ??????????????????????????????????????? | | ??????????????????????????????????????? | | ??????????????????????????????????????? | | | | | | | +----------------------------------------------------+ Best States ------------- Heat Dissipation 28 Energy Generation 14 Energy Capacity 275 Matter Stores 300 Matter Capacity 300 Sight Range 16 Terrain Scan Density 10 Evasion (%) 55 Item Schematics ----------------- None Robot Schematics ------------------ None Fabricated ------------ Nothing Repaired ---------- Nothing Studied --------- None Alien Tech Used ----------------- None Achievements -------------- None Challenges ------------ None Game ------ Seed PowerThrusterRedistributor Manual? 0 Play Time 00:21:24 Cumulative 57.1 hours Start 2026.01.08 @ 01:45:18 End 2026.01.08 @ 02:05:22 Sessions 1 Manual Loads 0 Difficulty Rogue Special Mode None Game No. 37 Rogue 37 Adventurer 0 Explorer 0 Win Type - Total 0 Types 0/0/0/0/0/0/0/0/0/0 Lore% 13 Gallery% 24 Achievement% 19 Wizard Run 0 Options --------- Layout 1 ASCII 0 Keyboard 0 Movement Arrows Keybinds 0 Fullscreen 1 Font 24/Smallcaps Map View 50x35 Zoom Use 0% Tactical HUD 1 Map Filters NONE Filters NONE Steam 1 RUN: 616d05e8-17f9-474b-ac90-46bde4d00345